[Event "Early-Titled-Tuesday-Blitz-April-23-2024"]
[Site "Chess.com"]
[Date "2024.04.23"]
[Round "3"]
[White "Nf3c5"]
[Black "Caracal3000"]
[Result "1-0"]
[WhiteElo "2657"]
[BlackElo "2476"]
[TimeControl "180+1"]
[EndTime "8:28:28 PDT"]
[Termination "Nf3c5 won by checkmate"]

1. e4 {[%clk 0:03:00.9]} 1... e5 {[%clk 0:03:00.3]} 2. Nf3 {[%clk 0:03:00.5]}
2... Nc6 {[%clk 0:03:01]} 3. Nc3 {[%clk 0:03:00.8]} 3... Nf6 {[%clk 0:03:01.3]}
4. h3 {[%clk 0:03:01.1]} 4... d5 {[%clk 0:02:56.9]} 5. exd5 {[%clk 0:03:01.1]}
5... Nxd5 {[%clk 0:02:57.8]} 6. Bb5 {[%clk 0:03:01.1]} 6... Nxc3 {[%clk
0:02:51.5]} 7. bxc3 {[%clk 0:03:02]} 7... Bd6 {[%clk 0:02:52.2]} 8. O-O {[%clk
0:03:00.9]} 8... O-O {[%clk 0:02:46.8]} 9. d4 {[%clk 0:03:01.5]} 9... Bd7 {[%clk
0:02:47.4]} 10. Rb1 {[%clk 0:02:59.8]} 10... Re8 {[%clk 0:02:42]} 11. Re1 {[%clk
0:02:52.2]} 11... exd4 {[%clk 0:02:40.7]} 12. cxd4 {[%clk 0:02:49.1]} 12...
Rxe1+ {[%clk 0:02:41.1]} 13. Qxe1 {[%clk 0:02:48.8]} 13... Qe8 {[%clk
0:02:33.7]} 14. Qd1 {[%clk 0:02:41.3]} 14... b6 {[%clk 0:02:22.2]} 15. c4 {[%clk
0:02:25.5]} 15... Na5 {[%clk 0:02:14]} 16. Bxd7 {[%clk 0:02:07.1]} 16... Qxd7
{[%clk 0:02:14.9]} 17. c5 {[%clk 0:02:06.3]} 17... Bxc5 {[%clk 0:02:01.7]} 18.
Be3 {[%clk 0:02:03.2]} 18... Bd6 {[%clk 0:01:57.6]} 19. Qc2 {[%clk 0:02:03.3]}
19... Qc6 {[%clk 0:01:53.9]} 20. Qf5 {[%clk 0:02:00]} 20... Re8 {[%clk
0:01:50.8]} 21. Ng5 {[%clk 0:01:56.4]} 21... h6 {[%clk 0:00:58.2]} 22. Qxf7+
{[%clk 0:01:26.3]} 22... Kh8 {[%clk 0:00:57.9]} 23. d5 {[%clk 0:01:17.8]} 23...
Qa4 {[%clk 0:00:52.8]} 24. Ne6 {[%clk 0:01:12]} 24... Be5 {[%clk 0:00:27.5]} 25.
Re1 {[%clk 0:00:36]} 25... Bf6 {[%clk 0:00:18]} 26. Bxh6 {[%clk 0:00:29]} 26...
Re7 {[%clk 0:00:12.3]} 27. Bxg7+ {[%clk 0:00:26]} 27... Kh7 {[%clk 0:00:10.2]}
28. Nf8# {[%clk 0:00:20.5]} 1-0

[Event "Early-Titled-Tuesday-Blitz-April-23-2024"]
[Site "Chess.com"]
[Date "2024.04.23"]
[Round "3"]
[White "NovakRatko"]
[Black "m_ezat"]
[Result "1-0"]
[WhiteElo "2387"]
[BlackElo "2597"]
[TimeControl "180+1"]
[EndTime "8:28:29 PDT"]
[Termination "NovakRatko won by resignation"]

1. d4 {[%clk 0:02:59.1]} 1... Nf6 {[%clk 0:02:59.7]} 2. c4 {[%clk 0:02:59.4]}
2... g6 {[%clk 0:03:00.3]} 3. Nc3 {[%clk 0:02:59]} 3... Bg7 {[%clk 0:03:00.8]}
4. e4 {[%clk 0:02:59.4]} 4... O-O {[%clk 0:03:01.5]} 5. f3 {[%clk 0:03:00]} 5...
d6 {[%clk 0:03:02.2]} 6. Be3 {[%clk 0:03:00.6]} 6... Nc6 {[%clk 0:03:02.6]} 7.
Qd2 {[%clk 0:02:59.9]} 7... a6 {[%clk 0:03:03.1]} 8. d5 {[%clk 0:02:53.7]} 8...
Ne5 {[%clk 0:03:01]} 9. g4 {[%clk 0:02:54]} 9... e6 {[%clk 0:02:54.6]} 10. Be2
{[%clk 0:02:52.5]} 10... exd5 {[%clk 0:02:54.4]} 11. cxd5 {[%clk 0:02:52.4]}
11... h5 {[%clk 0:02:50.2]} 12. h3 {[%clk 0:02:46.4]} 12... c5 {[%clk
0:02:46.7]} 13. f4 {[%clk 0:02:44.7]} 13... Ned7 {[%clk 0:02:46]} 14. g5 {[%clk
0:02:43.2]} 14... Nh7 {[%clk 0:02:45.2]} 15. a4 {[%clk 0:02:42.8]} 15... Re8
{[%clk 0:02:45.1]} 16. Bd3 {[%clk 0:02:33.5]} 16... c4 {[%clk 0:02:32.5]} 17.
Bxc4 {[%clk 0:02:31.6]} 17... Bxc3 {[%clk 0:02:30.7]} 18. bxc3 {[%clk
0:02:22.5]} 18... Rxe4 {[%clk 0:02:30.5]} 19. Bd3 {[%clk 0:02:22.3]} 19... Re8
{[%clk 0:02:26.5]} 20. Nf3 {[%clk 0:02:19.9]} 20... Nc5 {[%clk 0:02:26.7]} 21.
Bc2 {[%clk 0:02:18.9]} 21... Nf8 {[%clk 0:02:19.6]} 22. Kf1 {[%clk 0:02:00.4]}
22... Ne4 {[%clk 0:02:19.4]} 23. Qe1 {[%clk 0:01:44.4]} 23... Nd7 {[%clk
0:02:09.5]} 24. Kg2 {[%clk 0:01:40.9]} 24... Ndc5 {[%clk 0:02:08.4]} 25. Bd4
{[%clk 0:01:37.7]} 25... Bf5 {[%clk 0:01:52.5]} 26. Qb1 {[%clk 0:01:33.7]} 26...
Nxg5 {[%clk 0:01:44.5]} 27. Bxf5 {[%clk 0:01:22.1]} 27... Nxf3 {[%clk
0:01:44.2]} 28. Kxf3 {[%clk 0:01:09.4]} 28... Qe7 {[%clk 0:01:05.4]} 29. Bd3
{[%clk 0:00:56.9]} 29... Qd7 {[%clk 0:01:00.1]} 30. Bxg6 {[%clk 0:00:51]} 30...
f6 {[%clk 0:00:36.7]} 31. Bxe8 {[%clk 0:00:44.6]} 31... Rxe8 {[%clk 0:00:35]}
32. Rg1+ {[%clk 0:00:42.8]} 32... Kf8 {[%clk 0:00:33.4]} 33. Qg6 {[%clk
0:00:41.8]} 33... Qxh3+ {[%clk 0:00:26.3]} 34. Rg3 {[%clk 0:00:41.8]} 34... Qd7
{[%clk 0:00:23]} 35. Bxf6 {[%clk 0:00:37.5]} 35... Qf7 {[%clk 0:00:15.2]} 36.
Qh6+ {[%clk 0:00:34.8]} 1-0

[Event "Early-Titled-Tuesday-Blitz-April-23-2024"]
[Site "Chess.com"]
[Date "2024.04.23"]
[Round "3"]
[White "DarZay"]
[Black "Manukyan_Artak"]
[Result "1-0"]
[WhiteElo "2302"]
[BlackElo "2461"]
[TimeControl "180+1"]
[EndTime "8:28:30 PDT"]
[Termination "DarZay won on time"]

1. e4 {[%clk 0:02:53.8]} 1... c6 {[%clk 0:02:58.5]} 2. d4 {[%clk 0:02:53.1]}
2... d5 {[%clk 0:02:59.4]} 3. Nc3 {[%clk 0:02:50.5]} 3... dxe4 {[%clk
0:02:59.1]} 4. Nxe4 {[%clk 0:02:46.6]} 4... Nf6 {[%clk 0:03:00]} 5. Nxf6+ {[%clk
0:02:46.4]} 5... exf6 {[%clk 0:03:00.9]} 6. c3 {[%clk 0:02:46.8]} 6... Bd6
{[%clk 0:03:00.3]} 7. Bd3 {[%clk 0:02:46.7]} 7... O-O {[%clk 0:02:55]} 8. Be3
{[%clk 0:02:46.6]} 8... Re8 {[%clk 0:02:46.9]} 9. Qc2 {[%clk 0:02:46]} 9... h6
{[%clk 0:02:30.6]} 10. O-O-O {[%clk 0:02:43.3]} 10... Be6 {[%clk 0:02:26.4]} 11.
Kb1 {[%clk 0:02:42.8]} 11... b5 {[%clk 0:02:09]} 12. h4 {[%clk 0:02:40.9]} 12...
a5 {[%clk 0:01:55.4]} 13. Nf3 {[%clk 0:02:39.7]} 13... Nd7 {[%clk 0:01:48]} 14.
Rdg1 {[%clk 0:02:39.6]} 14... Bd5 {[%clk 0:01:38.1]} 15. Rh3 {[%clk 0:02:37.3]}
15... Nb6 {[%clk 0:01:25.4]} 16. g4 {[%clk 0:02:35.5]} 16... Nc4 {[%clk
0:01:18.7]} 17. Bc1 {[%clk 0:02:34.9]} 17... b4 {[%clk 0:01:03.2]} 18. cxb4
{[%clk 0:02:23.1]} 18... axb4 {[%clk 0:00:55.3]} 19. Bxc4 {[%clk 0:02:22.9]}
19... Be4 {[%clk 0:00:38.7]} 20. Bd3 {[%clk 0:02:22.8]} 20... Qa5 {[%clk
0:00:39]} 21. a4 {[%clk 0:02:13.2]} 21... b3 {[%clk 0:00:30.3]} 22. Qxb3 {[%clk
0:02:00.4]} 22... Reb8 {[%clk 0:00:27.1]} 23. Qxb8+ {[%clk 0:01:52.5]} 23...
Rxb8 {[%clk 0:00:24.3]} 24. Bxe4 {[%clk 0:01:52.8]} 24... Qxa4 {[%clk
0:00:20.6]} 25. g5 {[%clk 0:01:41.6]} 25... Ra8 {[%clk 0:00:15.1]} 26. gxf6
{[%clk 0:01:27.2]} 26... Qa2+ {[%clk 0:00:11.8]} 27. Kc2 {[%clk 0:01:27]} 27...
Qc4+ {[%clk 0:00:11.9]} 28. Kd1 {[%clk 0:01:24.8]} 28... Ra1 {[%clk 0:00:08.9]}
29. Bc2 {[%clk 0:01:07.7]} 29... g6 {[%clk 0:00:08]} 30. Re1 {[%clk 0:00:58.4]}
30... Bf4 {[%clk 0:00:04.1]} 31. Nd2 {[%clk 0:00:53.8]} 31... Qxd4 {[%clk
0:00:03.3]} 32. Rd3 {[%clk 0:00:41.8]} 32... Qxf6 {[%clk 0:00:03.3]} 33. Nb3
{[%clk 0:00:38.4]} 1-0

[Event "Early-Titled-Tuesday-Blitz-April-23-2024"]
[Site "Chess.com"]
[Date "2024.04.23"]
[Round "3"]
[White "kiwibobo"]
[Black "bescmelasti"]
[Result "0-1"]
[WhiteElo "2310"]
[BlackElo "2595"]
[TimeControl "180+1"]
[EndTime "8:28:33 PDT"]
[Termination "bescmelasti won by resignation"]

1. e4 {[%clk 0:03:00.1]} 1... c5 {[%clk 0:02:49.5]} 2. Nf3 {[%clk 0:03:00.3]}
2... e6 {[%clk 0:02:50.4]} 3. d4 {[%clk 0:03:00.5]} 3... cxd4 {[%clk 0:02:51]}
4. Nxd4 {[%clk 0:03:01.4]} 4... Nf6 {[%clk 0:02:51.5]} 5. Nc3 {[%clk 0:03:01.7]}
5... Nc6 {[%clk 0:02:51.9]} 6. Nxc6 {[%clk 0:03:01.1]} 6... bxc6 {[%clk
0:02:37.7]} 7. e5 {[%clk 0:03:01.6]} 7... Nd5 {[%clk 0:02:38.3]} 8. Ne4 {[%clk
0:03:02.2]} 8... Bb7 {[%clk 0:02:38.6]} 9. c4 {[%clk 0:02:49]} 9... Nb4 {[%clk
0:02:36.7]} 10. a3 {[%clk 0:02:45.9]} 10... Qa5 {[%clk 0:02:36.1]} 11. Bd2
{[%clk 0:02:40.5]} 11... Qxe5 {[%clk 0:02:33.1]} 12. axb4 {[%clk 0:02:31.7]}
12... Qxe4+ {[%clk 0:02:32.7]} 13. Qe2 {[%clk 0:02:28.4]} 13... Qxe2+ {[%clk
0:02:32.3]} 14. Bxe2 {[%clk 0:02:29.3]} 14... c5 {[%clk 0:02:30.9]} 15. bxc5
{[%clk 0:02:22.9]} 15... Bxc5 {[%clk 0:02:31.8]} 16. b4 {[%clk 0:02:20.9]} 16...
Bd4 {[%clk 0:02:30.9]} 17. Ra3 {[%clk 0:02:17.6]} 17... Bxg2 {[%clk 0:02:25.8]}
18. Rg1 {[%clk 0:02:17.9]} 18... Be4 {[%clk 0:02:26.1]} 19. c5 {[%clk
0:02:13.8]} 19... O-O {[%clk 0:02:24.2]} 20. Bb5 {[%clk 0:02:00.4]} 20... Rfd8
{[%clk 0:02:01.8]} 21. Ke2 {[%clk 0:01:57.6]} 21... a5 {[%clk 0:01:47.3]} 22.
Rxa5 {[%clk 0:01:26.6]} 22... Rxa5 {[%clk 0:01:46.8]} 23. bxa5 {[%clk
0:01:26.9]} 23... Bxc5 {[%clk 0:01:47.5]} 24. Be3 {[%clk 0:01:15.7]} 24... Bxe3
{[%clk 0:01:40.4]} 25. Kxe3 {[%clk 0:01:16]} 25... Bd5 {[%clk 0:01:38.3]} 26.
Kd4 {[%clk 0:01:12.3]} 26... d6 {[%clk 0:01:37.3]} 27. a6 {[%clk 0:01:11.1]}
27... Kf8 {[%clk 0:01:35.5]} 28. Ra1 {[%clk 0:01:10.4]} 28... Ke7 {[%clk
0:01:34.8]} 29. a7 {[%clk 0:01:08.5]} 29... Ra8 {[%clk 0:01:35.2]} 30. Bd3
{[%clk 0:01:05.7]} 30... Kd7 {[%clk 0:01:33.7]} 31. Bxh7 {[%clk 0:01:05.3]}
31... g6 {[%clk 0:01:33.7]} 32. h4 {[%clk 0:01:04.1]} 32... Rh8 {[%clk
0:01:31.3]} 33. h5 {[%clk 0:01:01.9]} 33... Rxh7 {[%clk 0:01:25.8]} 34. hxg6
{[%clk 0:01:01]} 34... Rh8 {[%clk 0:01:23.5]} 35. g7 {[%clk 0:00:20.4]} 35...
Rg8 {[%clk 0:01:21.7]} 36. f4 {[%clk 0:00:12.3]} 36... Ba8 {[%clk 0:01:18.8]}
37. Rb1 {[%clk 0:00:09.6]} 37... Kc7 {[%clk 0:01:14]} 38. Rb8 {[%clk 0:00:08.9]}
38... Rxg7 {[%clk 0:01:09.2]} 39. Rxa8 {[%clk 0:00:09.3]} 39... Kb7 {[%clk
0:01:08.8]} 40. Rd8 {[%clk 0:00:09.5]} 40... Kxa7 {[%clk 0:01:08.4]} 41. Rxd6
{[%clk 0:00:10]} 41... Kb7 {[%clk 0:01:09]} 42. Ke5 {[%clk 0:00:09.9]} 42... Kc7
{[%clk 0:01:08.4]} 43. Kf6 {[%clk 0:00:04.6]} 43... Kxd6 {[%clk 0:00:59.7]} 44.
Kxg7 {[%clk 0:00:05]} 44... Ke7 {[%clk 0:00:58.6]} 45. f5 {[%clk 0:00:05.3]}
45... exf5 {[%clk 0:00:58.3]} 0-1

[Event "Early-Titled-Tuesday-Blitz-April-23-2024"]
[Site "Chess.com"]
[Date "2024.04.23"]
[Round "3"]
[White "littlepinkyboy"]
[Black "wild3000"]
[Result "1-0"]
[WhiteElo "2659"]
[BlackElo "2478"]
[TimeControl "180+1"]
[EndTime "8:28:34 PDT"]
[Termination "littlepinkyboy won by checkmate"]

1. e4 {[%clk 0:02:59.8]} 1... e6 {[%clk 0:02:17.9]} 2. d4 {[%clk 0:02:58.7]}
2... a6 {[%clk 0:02:18]} 3. Nf3 {[%clk 0:02:58]} 3... b5 {[%clk 0:02:16.9]} 4.
Bd3 {[%clk 0:02:57]} 4... Bb7 {[%clk 0:02:17.1]} 5. O-O {[%clk 0:02:57.3]} 5...
d6 {[%clk 0:02:17.4]} 6. Qe2 {[%clk 0:02:56.6]} 6... Nf6 {[%clk 0:02:17.2]} 7.
a4 {[%clk 0:02:54.9]} 7... b4 {[%clk 0:02:17]} 8. c3 {[%clk 0:02:52.1]} 8... c5
{[%clk 0:02:13.1]} 9. dxc5 {[%clk 0:02:48.1]} 9... dxc5 {[%clk 0:02:13.1]} 10.
cxb4 {[%clk 0:02:48.5]} 10... cxb4 {[%clk 0:02:13.2]} 11. Bf4 {[%clk 0:02:45.8]}
11... Be7 {[%clk 0:02:11.2]} 12. Nbd2 {[%clk 0:02:45.7]} 12... O-O {[%clk
0:02:08]} 13. Nc4 {[%clk 0:02:45.9]} 13... Nbd7 {[%clk 0:02:02.6]} 14. Rfd1
{[%clk 0:02:42.7]} 14... Nc5 {[%clk 0:01:48.3]} 15. Bc2 {[%clk 0:02:42.1]} 15...
Qe8 {[%clk 0:01:27.2]} 16. Nd6 {[%clk 0:02:38.6]} 16... Qc6 {[%clk 0:01:22.1]}
17. Rac1 {[%clk 0:02:36.3]} 17... Rfd8 {[%clk 0:01:11.7]} 18. Nxf7 {[%clk
0:02:35.4]} 18... Rxd1+ {[%clk 0:01:06.3]} 19. Rxd1 {[%clk 0:02:36.3]} 19...
Ncxe4 {[%clk 0:00:59.3]} 20. N7e5 {[%clk 0:02:25.1]} 20... Qe8 {[%clk
0:00:43.9]} 21. Nd4 {[%clk 0:02:10]} 21... Bf8 {[%clk 0:00:29.3]} 22. Bb3 {[%clk
0:02:00.6]} 22... Bd5 {[%clk 0:00:28.6]} 23. Rc1 {[%clk 0:01:44.1]} 23... Bxb3
{[%clk 0:00:27.2]} 24. Nxb3 {[%clk 0:01:45]} 24... Rd8 {[%clk 0:00:26.4]} 25.
Qxa6 {[%clk 0:01:39.9]} 25... g5 {[%clk 0:00:23.4]} 26. Be3 {[%clk 0:01:34.9]}
26... Nd5 {[%clk 0:00:21.8]} 27. Nd4 {[%clk 0:01:24.8]} 27... Ra8 {[%clk
0:00:18.4]} 28. Qd3 {[%clk 0:01:11.6]} 28... Nc5 {[%clk 0:00:15]} 29. Qe2 {[%clk
0:01:08.6]} 29... Rxa4 {[%clk 0:00:13.8]} 30. Bxg5 {[%clk 0:01:08.1]} 30... Bg7
{[%clk 0:00:13.7]} 31. Rxc5 {[%clk 0:01:01.7]} 31... Ra1+ {[%clk 0:00:08.2]} 32.
Rc1 {[%clk 0:01:02.3]} 32... Rxc1+ {[%clk 0:00:07.8]} 33. Bxc1 {[%clk
0:01:03.2]} 33... Qa8 {[%clk 0:00:06]} 34. Nef3 {[%clk 0:00:59.9]} 34... Qa1
{[%clk 0:00:05.2]} 35. Qxe6+ {[%clk 0:00:59.5]} 35... Kh8 {[%clk 0:00:03.6]} 36.
Qe8+ {[%clk 0:00:57.6]} 36... Bf8 {[%clk 0:00:03.6]} 37. Qxf8# {[%clk 0:00:58]}
1-0

[Event "Early-Titled-Tuesday-Blitz-April-23-2024"]
[Site "Chess.com"]
[Date "2024.04.23"]
[Round "3"]
[White "Korchmar_Vasiliy"]
[Black "KuzubovYuriy"]
[Result "0-1"]
[WhiteElo "2711"]
[BlackElo "2933"]
[TimeControl "180+1"]
[EndTime "8:28:40 PDT"]
[Termination "KuzubovYuriy won on time"]

1. e4 {[%clk 0:03:00.9]} 1... e5 {[%clk 0:03:00.3]} 2. Nf3 {[%clk 0:03:00.6]}
2... Nf6 {[%clk 0:03:01]} 3. Nc3 {[%clk 0:02:53.9]} 3... d6 {[%clk 0:02:58.1]}
4. d4 {[%clk 0:02:48.8]} 4... Nbd7 {[%clk 0:02:58.1]} 5. Bc4 {[%clk 0:02:48.8]}
5... Be7 {[%clk 0:02:57.7]} 6. O-O {[%clk 0:02:49.2]} 6... O-O {[%clk
0:02:57.6]} 7. Re1 {[%clk 0:02:49.7]} 7... c6 {[%clk 0:02:57.4]} 8. a4 {[%clk
0:02:50]} 8... Qc7 {[%clk 0:02:56.9]} 9. h3 {[%clk 0:02:50.1]} 9... b6 {[%clk
0:02:52.6]} 10. Be3 {[%clk 0:02:48.6]} 10... Bb7 {[%clk 0:02:50.4]} 11. Bf1
{[%clk 0:02:13.7]} 11... Rfe8 {[%clk 0:02:46.3]} 12. a5 {[%clk 0:01:48.5]} 12...
Rad8 {[%clk 0:02:45.2]} 13. a6 {[%clk 0:01:47.2]} 13... Bc8 {[%clk 0:02:39.8]}
14. d5 {[%clk 0:01:41.5]} 14... cxd5 {[%clk 0:02:38.9]} 15. Nb5 {[%clk
0:01:28.6]} 15... Qb8 {[%clk 0:02:37]} 16. exd5 {[%clk 0:01:29]} 16... Nc5
{[%clk 0:02:29.1]} 17. Bxc5 {[%clk 0:01:26.7]} 17... bxc5 {[%clk 0:02:25.7]} 18.
c4 {[%clk 0:01:23.6]} 18... Bf8 {[%clk 0:02:21.5]} 19. Qa4 {[%clk 0:01:15.2]}
19... Nd7 {[%clk 0:02:14.7]} 20. Qa5 {[%clk 0:01:05.3]} 20... Nb6 {[%clk
0:02:13.3]} 21. b4 {[%clk 0:00:58.5]} 21... cxb4 {[%clk 0:01:54.8]} 22. Rab1
{[%clk 0:00:58.9]} 22... Bd7 {[%clk 0:01:50.8]} 23. Rxb4 {[%clk 0:00:58.6]}
23... Bxb5 {[%clk 0:01:50.2]} 24. Rxb5 {[%clk 0:00:48.7]} 24... Qc7 {[%clk
0:01:48.1]} 25. Rc1 {[%clk 0:00:36.7]} 25... g6 {[%clk 0:01:43.4]} 26. h4 {[%clk
0:00:33.2]} 26... Rc8 {[%clk 0:01:36.4]} 27. h5 {[%clk 0:00:26.9]} 27... e4
{[%clk 0:01:29]} 28. Nd4 {[%clk 0:00:22.5]} 28... e3 {[%clk 0:01:29.4]} 29. fxe3
{[%clk 0:00:21]} 29... Bh6 {[%clk 0:01:29]} 30. Nc2 {[%clk 0:00:15.4]} 30...
Rxe3 {[%clk 0:01:07.6]} 31. Nxe3 {[%clk 0:00:13.8]} 31... Bxe3+ {[%clk
0:01:07.2]} 32. Kh1 {[%clk 0:00:14.4]} 32... Bxc1 {[%clk 0:01:06.4]} 33. Qe1
{[%clk 0:00:11]} 33... Bf4 {[%clk 0:01:02.8]} 34. Qh4 {[%clk 0:00:08.2]} 34...
Be5 {[%clk 0:01:01.6]} 35. Rb1 {[%clk 0:00:03.5]} 35... Qd8 {[%clk 0:01:00.1]}
36. Qxd8+ {[%clk 0:00:02.8]} 36... Rxd8 {[%clk 0:01:00.2]} 37. Be2 {[%clk
0:00:01.7]} 37... Bd4 {[%clk 0:00:58.8]} 38. h6 {[%clk 0:00:01.7]} 38... Kf8
{[%clk 0:00:58.5]} 39. Bd3 {[%clk 0:00:01.6]} 39... Re8 {[%clk 0:00:57.9]} 40.
g4 {[%clk 0:00:01.7]} 40... Re3 {[%clk 0:00:57.6]} 41. Bf1 {[%clk 0:00:01.7]}
41... Rh3+ {[%clk 0:00:52.4]} 42. Kg2 {[%clk 0:00:01.9]} 42... Rxh6 {[%clk
0:00:52.4]} 43. Rd1 {[%clk 0:00:02.2]} 43... Bc5 {[%clk 0:00:52.3]} 44. Be2
{[%clk 0:00:01.3]} 44... g5 {[%clk 0:00:51.5]} 0-1

[Event "Early-Titled-Tuesday-Blitz-April-23-2024"]
[Site "Chess.com"]
[Date "2024.04.23"]
[Round "3"]
[White "Smiechu"]
[Black "Byniolus"]
[Result "1-0"]
[WhiteElo "2472"]
[BlackElo "2834"]
[TimeControl "180+1"]
[EndTime "8:28:41 PDT"]
[Termination "Smiechu won on time"]

1. e4 {[%clk 0:03:00.9]} 1... d6 {[%clk 0:02:58.7]} 2. d4 {[%clk 0:02:59.8]}
2... Nf6 {[%clk 0:02:59.3]} 3. Nc3 {[%clk 0:02:58.6]} 3... c6 {[%clk 0:02:59.5]}
4. Be3 {[%clk 0:02:58.6]} 4... Qb6 {[%clk 0:02:59.2]} 5. Qd2 {[%clk 0:02:55.7]}
5... Qxb2 {[%clk 0:02:58.8]} 6. Rb1 {[%clk 0:02:55.6]} 6... Qa3 {[%clk
0:02:57.9]} 7. Nf3 {[%clk 0:02:52.8]} 7... e6 {[%clk 0:02:57.5]} 8. Bd3 {[%clk
0:02:50.2]} 8... d5 {[%clk 0:02:51.5]} 9. exd5 {[%clk 0:02:29.6]} 9... exd5
{[%clk 0:02:45.8]} 10. O-O {[%clk 0:02:25.9]} 10... Bb4 {[%clk 0:02:44.6]} 11.
Rb3 {[%clk 0:02:22.2]} 11... Qa5 {[%clk 0:02:44.1]} 12. Qe2 {[%clk 0:02:12.1]}
12... O-O {[%clk 0:02:40.3]} 13. Bd2 {[%clk 0:02:08.4]} 13... Re8 {[%clk
0:02:35.1]} 14. Qd1 {[%clk 0:01:52]} 14... Bg4 {[%clk 0:02:26.1]} 15. Re1 {[%clk
0:01:32.2]} 15... Nbd7 {[%clk 0:02:19.9]} 16. a3 {[%clk 0:01:08.2]} 16... Bxc3
{[%clk 0:02:19]} 17. Bxc3 {[%clk 0:01:08.3]} 17... Qc7 {[%clk 0:02:18.4]} 18.
Rb1 {[%clk 0:01:02.4]} 18... Ne4 {[%clk 0:02:13.7]} 19. Bb4 {[%clk 0:00:57]}
19... a5 {[%clk 0:02:11.5]} 20. Bd2 {[%clk 0:00:55.2]} 20... Nxd2 {[%clk
0:01:59.6]} 21. Qxd2 {[%clk 0:00:53.8]} 21... Bxf3 {[%clk 0:01:59.6]} 22. gxf3
{[%clk 0:00:53.8]} 22... Nf8 {[%clk 0:01:55.2]} 23. f4 {[%clk 0:00:48.4]} 23...
b5 {[%clk 0:01:52.5]} 24. Kh1 {[%clk 0:00:47.3]} 24... Rxe1+ {[%clk 0:01:37.8]}
25. Rxe1 {[%clk 0:00:46.3]} 25... Ne6 {[%clk 0:01:35.5]} 26. f5 {[%clk 0:00:42]}
26... Nxd4 {[%clk 0:01:11.2]} 27. Qe3 {[%clk 0:00:35.1]} 27... Qd6 {[%clk
0:00:37]} 28. Qxd4 {[%clk 0:00:34.7]} 28... Qxa3 {[%clk 0:00:37.3]} 29. f6
{[%clk 0:00:33]} 29... Qb4 {[%clk 0:00:27.4]} 30. Qe3 {[%clk 0:00:30.1]} 30...
g6 {[%clk 0:00:05.2]} 31. Qh6 {[%clk 0:00:23.4]} 31... Qxe1+ {[%clk 0:00:04.1]}
32. Kg2 {[%clk 0:00:23.5]} 1-0

[Event "Early-Titled-Tuesday-Blitz-April-23-2024"]
[Site "Chess.com"]
[Date "2024.04.23"]
[Round "3"]
[White "AktilekAskarovich"]
[Black "goodluck06"]
[Result "0-1"]
[WhiteElo "2487"]
[BlackElo "2676"]
[TimeControl "180+1"]
[EndTime "8:28:42 PDT"]
[Termination "goodluck06 won on time"]

1. d4 {[%clk 0:02:54.2]} 1... Nf6 {[%clk 0:02:59.6]} 2. c4 {[%clk 0:02:54.4]}
2... g6 {[%clk 0:02:59]} 3. Nf3 {[%clk 0:02:54.1]} 3... Bg7 {[%clk 0:02:59.6]}
4. e3 {[%clk 0:02:54.4]} 4... O-O {[%clk 0:02:59.9]} 5. Be2 {[%clk 0:02:55]}
5... d6 {[%clk 0:02:59.6]} 6. O-O {[%clk 0:02:55.4]} 6... a5 {[%clk 0:02:59.7]}
7. Nc3 {[%clk 0:02:53.8]} 7... Bf5 {[%clk 0:02:59.8]} 8. b3 {[%clk 0:02:51.8]}
8... e5 {[%clk 0:02:55.1]} 9. Bb2 {[%clk 0:02:42.3]} 9... e4 {[%clk 0:02:46.5]}
10. Nd2 {[%clk 0:02:42.2]} 10... h5 {[%clk 0:02:40.8]} 11. a3 {[%clk 0:02:41.3]}
11... Nc6 {[%clk 0:02:30.2]} 12. Qb1 {[%clk 0:02:06]} 12... Re8 {[%clk
0:02:27.1]} 13. b4 {[%clk 0:02:05.7]} 13... axb4 {[%clk 0:02:26.7]} 14. axb4
{[%clk 0:02:06.6]} 14... Nxb4 {[%clk 0:02:24.3]} 15. Ba3 {[%clk 0:02:06.7]}
15... Nd3 {[%clk 0:02:17.8]} 16. Qxb7 {[%clk 0:01:58.2]} 16... c5 {[%clk
0:02:06.2]} 17. dxc5 {[%clk 0:01:44.5]} 17... Ng4 {[%clk 0:02:01.9]} 18. Qb3
{[%clk 0:01:20.8]} 18... dxc5 {[%clk 0:01:40.2]} 19. h3 {[%clk 0:01:17.6]} 19...
Ngxf2 {[%clk 0:01:37.7]} 20. Ra2 {[%clk 0:00:46.2]} 20... Qg5 {[%clk 0:01:28.6]}
21. Rxf2 {[%clk 0:00:38.9]} 21... Qxe3 {[%clk 0:00:39]} 22. Bxd3 {[%clk
0:00:38.6]} 22... exd3 {[%clk 0:00:33.2]} 23. Nd1 {[%clk 0:00:26.9]} 23... Qe1+
{[%clk 0:00:27.8]} 24. Rf1 {[%clk 0:00:26.7]} 24... Bd4+ {[%clk 0:00:28.2]} 25.
Kh1 {[%clk 0:00:23.8]} 25... Qg3 {[%clk 0:00:28.1]} 26. Nf3 {[%clk 0:00:20.1]}
26... Re2 {[%clk 0:00:27.1]} 27. Nh4 {[%clk 0:00:04.4]} 27... Qxh4 {[%clk
0:00:17]} 0-1